[Event "2nd Namma Bengaluru Open-B 2025"]
[Site "Bengaluru"]
[Date "2025.04.11"]
[Round "3.8"]
[White "Jowett Jibin"]
[Black "Arush A"]
[Result "0-1"]
[Annotator "NA"]
[ECO "C55"]
[WhiteElo "1730"]
[BlackElo "1876"]
[PlyCount "82"]
[EventDate "2025.04.10"]
[EventType "swiss"]
[EventCountry "IND"]
[SourceTitle "playchess.com"]
[Source "ChessBase"]
[SourceQuality "1"]
[TimeControl "3600+30"]

1. e4 {[%emt 0:00:05]} e5 {[%emt 0:00:36]} 2. Bc4 {[%emt 0:00:11]} Nc6 {[%emt 0:02:02]} 3. Nf3 {[%emt 0:00:08]} Nf6 {[%emt 0:00:18]} 4. d3 {[%emt 0:00:09]} Be7 {[%emt 0:01:00]} 5. O-O {[%emt 0:01:17]} O-O {[%emt 0:01:47]} 6. Re1 {[%emt 0:01:56]} d6 {[%emt 0:02:18]} 7. a4 {[%emt 0:00:40]} Be6 {[%emt 0:03:23]} 8. Nc3 {[%emt 0:04:16]} Re8 {[%emt 0:09:43]} 9. Bxe6 {[%emt 0:03:37]} fxe6 {[%emt 0:00:11]} 10. d4 {[%emt 0:00:47]} exd4 {[%emt 0:02:31]} 11. Nxd4 {[%emt 0:00:14]} Nxd4 {[%emt 0:00:32]} 12. Qxd4 {[%emt 0:00:07]} Nd7 {[%emt 0:01:06]} 13. Qc4 {[%emt 0:07:43]} Bf6 {[%emt 0:03:34]} 14. f4 {[%emt 0:03:13]} Kh8 {[%emt 0:03:52]} 15. Be3 {[%emt 0:01:17]} c6 {[%emt 0:06:28]} 16. Rad1 {[%emt 0:06:52]} d5 {[%emt 0:03:36]} 17. Qd3 {[%emt 0:01:49]} Qa5 {[%emt 0:04:45]} 18. Bd2 {[%emt 0:08:33]} Nc5 {[%emt 0:07:43]} 19. Qe2 {[%emt 0:01:04]} Bd4+ {[%emt 0:01:55]} 20. Kh1 {[%emt 0:01:14]} Qd8 {[%emt 0:01:30]} 21. Rf1 {[%emt 0:05:24]} Bxc3 {[%emt 0:02:51]} 22. Bxc3 {[%emt 0:00:06]} Nxe4 {[%emt 0:01:04]} 23. Be5 {[%emt 0:00:14]} Qh4 {[%emt 0:01:08]} 24. Rd3 {[%emt 0:00:34]} Qh6 {[%emt 0:01:06]} 25. Rff3 {[%emt 0:03:03]} Re7 {[%emt 0:01:09]} 26. Rh3 {[%emt 0:00:34]} Qg6 {[%emt 0:00:11]} 27. Rh4 {[%emt 0:02:24]} Rae8 {[%emt 0:02:17]} 28. Rdh3 {[%emt 0:01:38]} Nf6 {[%emt 0:00:35]} 29. Qd2 {[%emt 0:01:28]} Qf5 {[%emt 0:02:47]} 30. Kg1 {[%emt 0:01:04]} Kg8 {[%emt 0:01:36]} 31. Qd4 {[%emt 0:01:39]} b6 {[%emt 0:00:55]} 32. b4 {[%emt 0:01:51]} Rf7 {[%emt 0:00:47]} 33. Rg3 {[%emt 0:00:58]} Qe4 {[%emt 0:01:02]} 34. Qc3 {[%emt 0:00:19]} d4 {[%emt 0:00:25]} 35. Bxd4 {[%emt 0:01:07]} Rd8 {[%emt 0:00:25]} 36. Rd3 {[%emt 0:00:36]} Nd5 {[%emt 0:00:17]} 37. Qd2 {[%emt 0:00:20]} Nxf4 {[%emt 0:00:27]} 38. Bf6 Rxd3 {[%emt 0:00:30]} 39. cxd3 Ne2+ {[%emt 0:00:30]} 40. Kh1 Rxf6 {[%emt 0:00:30]} 41. dxe4 Rf1# {[%emt 0:00:30]} 0-1

[Event "2nd Namma Bengaluru Open-B 2025"]
[Site "Bengaluru"]
[Date "2025.04.11"]
[Round "3.9"]
[White "Shreyan Thipparthi"]
[Black "Pranav Ganesh Prabhu"]
[Result "1-0"]
[Annotator "NA"]
[ECO "E06"]
[WhiteElo "1730"]
[BlackElo "1862"]
[PlyCount "155"]
[EventDate "2025.04.10"]
[EventType "swiss"]
[EventCountry "IND"]
[SourceTitle "playchess.com"]
[Source "ChessBase"]
[SourceQuality "1"]
[TimeControl "3600+30"]

1. d4 {[%emt 0:06:34]} d5 {[%emt 0:00:18]} 2. c4 {[%emt 0:00:11]} e6 {[%emt 0:00:05]} 3. g3 {[%emt 0:00:10]} Nf6 {[%emt 0:00:07]} 4. Nf3 {[%emt 0:00:12]} Be7 {[%emt 0:00:06]} 5. Bg2 {[%emt 0:00:10]} O-O {[%emt 0:00:09]} 6. Qc2 {[%emt 0:00:06]} a5 {[%emt 0:00:08]} 7. O-O {[%emt 0:01:24]} c6 {[%emt 0:00:04]} 8. Nbd2 {[%emt 0:02:58]} b6 {[%emt 0:00:13]} 9. e4 {[%emt 0:01:25]} Ba6 {[%emt 0:03:38]} 10. b3 {[%emt 0:01:42]} Ra7 {[%emt 0:00:35]} 11. Bb2 {[%emt 0:05:41]} Rc7 {[%emt 0:06:03]} 12. Rfc1 {[%emt 0:06:32]} c5 {[%emt 0:02:09]} 13. exd5 {[%emt 0:02:23]} exd5 {[%emt 0:00:59]} 14. Bf1 {[%emt 0:09:22]} Nc6 {[%emt 0:03:40]} 15. a3 {[%emt 0:03:13]} cxd4 {[%emt 0:03:55]} 16. Nxd4 {[%emt 0:00:25]} dxc4 {[%emt 0:00:40]} 17. Nxc6 {[%emt 0:00:19]} Rxc6 {[%emt 0:00:09]} 18. bxc4 {[%emt 0:01:34]} b5 {[%emt 0:11:00]} 19. Bc3 {[%emt 0:06:25]} bxc4 {[%emt 0:06:01]} 20. Qa4 {[%emt 0:00:11]} Rc5 {[%emt 0:00:51]} 21. Nxc4 {[%emt 0:01:09]} Bb5 {[%emt 0:05:55]} 22. Qxa5 {[%emt 0:01:40]} Qc8 {[%emt 0:15:45]} 23. Bb4 {[%emt 0:02:53]} Bd8 {[%emt 0:00:50]} 24. Qa7 {[%emt 0:01:26]} Rc7 {[%emt 0:01:39]} 25. Qd4 {[%emt 0:01:24]} Rd7 {[%emt 0:02:08]} 26. Nd6 {[%emt 0:00:27]} Qb8 {[%emt 0:02:12]} 27. Bxb5 {[%emt 0:00:11]} Bb6 {[%emt 0:00:14]} 28. Qd3 {[%emt 0:01:29]} Rdd8 {[%emt 0:01:14]} 29. Qf3 {[%emt 0:00:38]} Rxd6 {[%emt 0:00:41]} 30. Bxd6 {[%emt 0:00:06]} Qxd6 {[%emt 0:00:03]} 31. Rc6 {[%emt 0:00:25]} Qe5 {[%emt 0:01:14]} 32. Rb1 {[%emt 0:00:22]} Ba7 {[%emt 0:00:28]} 33. a4 {[%emt 0:01:53]} Ne4 {[%emt 0:01:00]} 34. Re1 {[%emt 0:00:33]} Ng5 {[%emt 0:00:18]} 35. Qd1 {[%emt 0:00:59]} Nf3+ {[%emt 0:01:38]} 36. Qxf3 {[%emt 0:00:05]} Qxe1+ {[%emt 0:00:02]} 37. Kg2 {[%emt 0:00:10]} h6 {[%emt 0:00:40]} 38. Bc4 {[%emt 0:00:47]} Qe7 {[%emt 0:01:04]} 39. a5 {[%emt 0:00:39]} Rd8 {[%emt 0:00:09]} 40. Qxf7+ {[%emt 0:00:00]} Qxf7 {[%emt 0:00:00]} 41. Bxf7+ {[%emt 0:00:00]} Kf8 {[%emt 0:01:36]} 42. Bg6 {[%emt 0:01:02]} Rd2 {[%emt 0:00:59]} 43. Rc8+ {[%emt 0:00:08]} Ke7 {[%emt 0:00:02]} 44. Rc7+ {[%emt 0:00:06]} Kf6 {[%emt 0:00:01]} 45. Rxa7 {[%emt 0:00:15]} Kxg6 {[%emt 0:00:02]} 46. a6 {[%emt 0:00:23]} Ra2 {[%emt 0:02:46]} 47. Ra8 {[%emt 0:00:50]} Kh5 {[%emt 0:00:00]} 48. a7 {[%emt 0:00:08]} g6 {[%emt 0:00:00]} 49. h3 {[%emt 0:00:14]} Ra1 {[%emt 0:00:00]} 50. g4+ {[%emt 0:00:27]} Kh4 {[%emt 0:00:28]} 51. Rh8 {[%emt 0:00:12]} Rxa7 {[%emt 0:00:09]} 52. Rxh6+ {[%emt 0:00:04]} Kg5 {[%emt 0:00:09]} 53. Rh8 {[%emt 0:00:04]} Ra3 {[%emt 0:00:14]} 54. f3 {[%emt 0:15:24]} Ra1 {[%emt 0:00:21]} 55. h4+ {[%emt 0:00:00]} Kf6 {[%emt 0:00:09]} 56. Kg3 {[%emt 0:00:00]} Ra4 {[%emt 0:00:38]} 57. Rb8 {[%emt 0:00:00]} Rc4 {[%emt 0:00:30]} 58. Rb5 {[%emt 0:00:00]} Rc1 {[%emt 0:00:39]} 59. h5 {[%emt 0:00:00]} gxh5 {[%emt 0:00:09]} 60. Rxh5 {[%emt 0:00:00]} Rc4 {[%emt 0:00:18]} 61. Ra5 {[%emt 0:00:00]} Rb4 {[%emt 0:00:35]} 62. f4 {[%emt 0:00:00]} Rb1 {[%emt 0:00:12]} 63. Ra6+ {[%emt 0:00:00]} Kg7 {[%emt 0:00:05]} 64. Kh4 {[%emt 0:00:00]} Rb4 {[%emt 0:00:35]} 65. Kg5 {[%emt 0:00:00]} Rb5+ {[%emt 0:00:06]} 66. f5 {[%emt 0:00:00]} Rb7 {[%emt 0:00:09]} 67. Rg6+ {[%emt 0:00:00]} Kh7 {[%emt 0:01:00]} 68. Rh6+ {[%emt 0:00:00]} Kg7 {[%emt 0:01:10]} 69. f6+ {[%emt 0:00:00]} Kg8 {[%emt 0:00:04]} 70. Kg6 {[%emt 0:00:00]} Rg7+ {[%emt 0:01:32]} 71. Kf5 {[%emt 0:00:00]} Rb7 {[%emt 0:00:10]} 72. g5 {[%emt 0:00:00]} Ra7 {[%emt 0:00:30]} 73. Rh1 {[%emt 0:00:00]} Ra5+ {[%emt 0:00:37]} 74. Kg6 {[%emt 0:00:00]} Ra6 {[%emt 0:00:05]} 75. Rc1 {[%emt 0:00:00]} Ra8 {[%emt 0:00:11]} 76. Rc7 {[%emt 0:00:00]} Kh8 {[%emt 0:00:57]} 77. Rh7+ {[%emt 0:00:00]} Kg8 {[%emt 0:00:21]} 78. f7+ {[%emt 0:00:00]} 1-0

[Event "2nd Namma Bengaluru Open-B 2025"]
[Site "Bengaluru"]
[Date "2025.04.11"]
[Round "3.10"]
[White "Asmita Avijit Ray"]
[Black "Malla, Nooka Raju"]
[Result "0-1"]
[Annotator "NA"]
[ECO "A92"]
[WhiteElo "1728"]
[BlackElo "1860"]
[PlyCount "120"]
[EventDate "2025.04.10"]
[EventType "swiss"]
[EventCountry "IND"]
[SourceTitle "playchess.com"]
[Source "ChessBase"]
[SourceQuality "1"]
[TimeControl "3600+30"]

1. d4 {[%emt 1:01:00]} Nf6 {[%emt 1:01:00]} 2. c4 {[%emt 0:00:30]} e6 {[%emt 0:00:30]} 3. g3 {[%emt 0:00:30]} d5 {[%emt 0:00:30]} 4. Bg2 {[%emt 0:00:30]} Be7 {[%emt 0:00:30]} 5. Nf3 {[%emt 0:00:30]} O-O {[%emt 0:00:30]} 6. O-O {[%emt 0:00:30]} Ne4 {[%emt 0:00:30]} 7. Qc2 {[%emt 0:00:30]} f5 {[%emt 0:00:30]} 8. Ne5 {[%emt 0:00:30]} c6 {[%emt 0:00:30]} 9. Nd2 {[%emt 0:00:30]} Nd7 {[%emt 0:00:30]} 10. Nd3 {[%emt 0:00:30]} Ndf6 {[%emt 0:00:30]} 11. c5 {[%emt 0:00:30]} Bd7 {[%emt 0:00:30]} 12. f3 {[%emt 0:00:30]} Ng5 {[%emt 0:00:30]} 13. Ne5 {[%emt 0:00:30]} Be8 {[%emt 0:00:30]} 14. b3 {[%emt 0:00:30]} Nd7 {[%emt 0:00:30]} 15. f4 {[%emt 0:00:30]} Nxe5 {[%emt 0:00:30]} 16. dxe5 Nf7 17. Bb2 Nh6 18. h3 Bh5 19. Nf3 Bxf3 20. Bxf3 g5 21. e3 Kh8 22. Bd4 Rg8 23. Kh2 g4 24. hxg4 Nxg4+ 25. Kg2 Bh4 26. Bxg4 Rxg4 27. Rf3 Qg8 28. Qf2 Qg6 29. Rh1 Rg8 30. Rh3 h5 31. Bc3 Be7 32. b4 h4 33. Be1 Rg7 34. Kf1 Kg8 35. Qh2 Qh5 36. Bf2 Qe8 37. gxh4 {[%emt 0:11:00]} b6 {[%emt 0:11:00]} 38. h5 {[%emt 0:00:30]} Kh7 {[%emt 0:00:30]} 39. Rhg3 {[%emt 0:00:30]} bxc5 {[%emt 0:00:30]} 40. bxc5 {[%emt 0:00:30]} Qb8 {[%emt 0:00:30]} 41. Be1 {[%emt 0:00:30]} Bxc5 {[%emt 0:00:30]} 42. Qc2 {[%emt 0:00:30]} Qb5+ {[%emt 0:00:30]} 43. Kg2 {[%emt 0:00:30]} Kh6 {[%emt 0:00:30]} 44. Rxg4 {[%emt 0:00:30]} Rxg4+ {[%emt 0:00:30]} 45. Rg3 {[%emt 0:00:30]} Rxg3+ {[%emt 0:00:30]} 46. Bxg3 {[%emt 0:00:30]} Bxe3 {[%emt 0:00:30]} 47. Kf3 {[%emt 0:00:30]} d4 {[%emt 0:00:30]} 48. Bf2 {[%emt 0:00:30]} Qd5+ {[%emt 0:00:30]} 49. Kg3 {[%emt 0:00:30]} Qe4 {[%emt 0:00:30]} 50. Qxe4 {[%emt 0:00:30]} Bxf2+ {[%emt 0:00:30]} 51. Kxf2 {[%emt 0:00:30]} fxe4 {[%emt 0:00:30]} 52. f5 {[%emt 0:00:30]} Kxh5 {[%emt 0:00:30]} 53. f6 {[%emt 0:00:30]} Kg6 {[%emt 0:00:30]} 54. Ke2 {[%emt 0:00:30]} c5 {[%emt 0:00:30]} 55. Kd2 {[%emt 0:00:30]} c4 {[%emt 0:00:30]} 56. a3 {[%emt 0:00:30]} a6 {[%emt 0:00:30]} 57. a4 {[%emt 0:00:30]} a5 {[%emt 0:00:30]} 58. Ke2 {[%emt 0:00:30]} c3 {[%emt 0:00:30]} 59. Kd1 {[%emt 0:00:30]} d3 {[%emt 0:00:30]} 60. Kc1 {[%emt 0:00:30]} e3 {[%emt 0:00:30]} 0-1